bitfinex/quotes_ETHUSD_20260209
["timestamp","ask_amount","ask_price","bid_price","bid_amount"]
[1770674677599,1.1785226,2121.3,2120.3,1.17907843]
[1770674677802,1.00979611,2121.2,2120.2,1.82784555]
[1770674678117,5.2163889,2121.2,2120.1,1.17916774]
[1770674678416,1.86407202,2120.7,2119.7,1.17938517]
[1770674678716,5.16007202,2120.7,2119.7,1.17938517]
[1770674678905,1.9203889,2120.6,2119.5,1.17948406]
[1770674679107,1.01037925,2120.5,2119.6,1.17942349]
[1770674679319,1.86407202,2120.6,2119.6,1.17942368]
[1770674679619,2.18956964,2120.5,2119.4,1.17957912]
[1770674679827,1.17896722,2120.5,2119.4,1.17957912]
[1770674680603,1.17896722,2120.5,2119.4,3.00742467]
[1770674680998,1.17896722,2120.5,2119.5,0.001]
[1770674681202,3.04503924,2120.5,2119.5,0.001]
[1770674681405,1.01133123,2120.4,2119.5,0.001]
[1770674681605,3.04503924,2120.5,2119.5,0.001]
[1770674681804,1.01133146,2120.4,2119.5,0.001]
[1770674682006,3.04503924,2120.5,2119.5,0.001]
[1770674682199,1.01133124,2120.4,2119.5,0.001]
[1770674682388,2.87540326,2120.3,2119.5,0.001]
[1770674682608,2.44390155,2120.5,2119.5,0.001]
[1770674682799,1.01183312,2120.4,2119.5,1.82884555]
[1770674682997,1.18096722,2120.5,2119.5,1.82884555]
[1770674682998,1.18096722,2120.5,2119.5,0.001]
[1770674683212,1.01175571,2120.4,2119.5,0.001]
[1770674683425,1.18096722,2120.5,2119.5,1.82884555]
[1770674683619,2.19131378,2120.4,2119.6,1.17946782]
[1770674683814,1.18100735,2120.5,2119.6,1.17946782]
[1770674686323,2.19248997,2120.4,2119.6,1.17946782]
[1770674686525,1.17906651,2120.4,2119.6,1.17946782]
[1770674688507,0.002,2120.5,2119.6,1.17946782]
[1770674688703,0.002,2120.5,2119.7,1.82784555]
[1770674690527,0.002,2120.5,2119.8,1.17935654]
[1770674693925,0.002,2120.3,2119.8,1.17935654]
[1770674694327,0.002,2120.5,2119.9,1.92536392]
[1770674694537,0.002,2120.5,2120.0,1.17924528]
[1770674695036,0.002,2120.5,2120.1,1.92536392]
[1770674696540,0.002,2120.5,2120.2,1.17913404]
[1770674700624,0.002,2120.7,2120.3,1.92536392]
[1770674701745,1.17856866,2121.3,2120.4,1.92536392]
[1770674701932,1.01424251,2121.2,2120.4,1.92536392]
[1770674702128,1.18050646,2121.4,2120.4,1.92536392]
[1770674702441,1.0138293,2121.3,2120.4,1.92536392]
[1770674702650,1.18050646,2121.4,2120.5,3.10433114]
[1770674702942,1.01446883,2121.3,2120.5,3.10433114]
[1770674703244,1.18050646,2121.4,2120.6,3.295]
[1770674703441,1.01428652,2121.3,2120.6,3.295]
[1770674703617,1.18050646,2121.4,2120.6,3.295]
[1770674703817,1.01424991,2121.3,2120.6,3.295]
[1770674704023,1.18050646,2121.4,2120.6,3.295]
[1770674704227,1.01424991,2121.3,2120.6,3.295]
[1770674704426,1.83197416,2121.1,2120.2,1.17911071]
[1770674704617,1.17880045,2120.8,2119.9,4.71710401]
[1770674704817,3.01077461,2120.8,2119.9,1.17930091]
[1770674705367,2.84640937,2120.7,2119.8,4.47432601]
[1770674705645,1.83197416,2120.7,2119.8,4.47432601]
[1770674706060,1.83197416,2120.7,2119.9,0.001]
[1770674706462,0.002,2120.6,2119.9,0.001]
[1770674706825,3.01288578,2120.6,2119.9,0.001]
[1770674707122,1.01507147,2120.5,2119.9,0.001]
[1770674707318,3.01288578,2120.6,2119.9,0.001]
[1770674707545,1.01511659,2120.5,2119.9,0.001]
[1770674707751,3.01288578,2120.6,2119.9,0.001]
[1770674707934,1.01511654,2120.5,2119.9,0.001]
[1770674708134,3.01288578,2120.6,2119.9,0.001]
[1770674708334,1.01519498,2120.5,2119.9,0.001]
[1770674708549,3.01288578,2120.6,2119.9,0.001]
[1770674708853,1.0151366,2120.5,2119.9,0.001]
[1770674709145,3.01288578,2120.6,2119.9,0.001]
[1770674709352,1.01521545,2120.5,2119.9,0.001]
[1770674709553,3.01288578,2120.6,2119.9,0.001]
[1770674709865,1.01522072,2120.5,2119.9,0.001]
[1770674710051,3.01288578,2120.6,2119.9,0.001]
[1770674710353,1.01522076,2120.5,2119.9,0.001]
[1770674710525,3.01288578,2120.6,2119.9,0.001]
[1770674710721,1.01533634,2120.5,2119.9,0.001]
[1770674710944,3.01288578,2120.6,2119.9,0.001]
[1770674711152,1.17902282,2120.4,2119.9,0.001]
[1770674713759,0.002,2120.6,2119.9,1.92636392]
[1770674714453,0.002,2120.6,2120.0,1.9816808]
[1770674716556,0.002,2120.6,2120.1,1.17918966]
[1770674716755,0.002,2120.6,2120.0,1.17920578]
[1770674717458,1.83197416,2120.4,2119.6,0.001]
[1770674717686,1.01621742,2120.3,2119.8,1.17932507]
[1770674717966,1.26889593,2120.5,2119.9,1.17925347]
[1770674718254,1.01637552,2120.4,2119.9,1.17925347]
[1770674718467,1.01637552,2120.3,2120.1,0.001]
[1770674718634,1.17902282,2120.4,2120.1,0.001]
[1770674718829,1.01638592,2120.3,2120.1,0.001]
[1770674719138,2.44790154,2120.5,2120.1,0.001]
[1770674719333,1.0163359,2120.4,2120.1,0.001]
[1770674719636,3.10494272,2120.5,2120.1,0.001]
[1770674719874,2.94224833,2120.4,2119.9,0.001]
[1770674720161,1.17897791,2120.5,2119.6,0.001]
[1770674720162,1.83845299,2120.2,2119.6,0.001]
[1770674720537,1.17918966,2120.1,2119.6,0.001]
[1770674722165,1.26889593,2119.8,2119.3,0.001]
[1770674722457,1.01606885,2119.7,2119.3,0.001]
[1770674722632,3.10734892,2119.9,2119.3,0.001]
[1770674722829,1.17941218,2119.7,2119.3,0.001]
[1770674723073,1.01538662,2119.6,2119.3,0.001]
[1770674723235,1.17941218,2119.7,2119.3,0.001]
[1770674725266,4.71748684,2119.8,2119.3,0.001]
[1770674725642,1.17934401,2119.9,2119.4,0.05631688]
[1770674725850,4.47425716,2120.0,2119.6,0.05631688]
[1770674726253,4.47425716,2120.0,2119.4,0.05631688]
[1770674727173,1.83845299,2119.9,2119.3,0.001]
[1770674727390,1.17935654,2119.8,2119.3,0.001]
[1770674728542,3.01780953,2119.8,2119.3,0.001]
[1770674728762,1.83845299,2119.7,2119.3,0.001]
[1770674729263,1.17935654,2119.8,2119.3,0.001]
[1770674729442,4.71722827,2119.9,2119.3,0.001]
[1770674730363,4.47427634,2120.0,2119.4,0.05631688]
[1770674730871,6.31272933,2120.0,2119.3,0.001]
[1770674731072,1.83845299,2119.9,2119.3,0.001]
[1770674731483,1.17935654,2119.8,2119.3,0.001]
[1770674731866,3.01780953,2119.8,2119.5,0.001]
[1770674732067,1.17935654,2119.8,2119.3,0.001]
[1770674732287,3.01780953,2119.8,2119.3,0.001]
[1770674732666,1.83845299,2119.7,2119.3,0.001]
[1770674733591,1.17946782,2119.6,2119.3,0.001]
[1770674734392,6.14850812,2119.5,2118.9,0.001]
[1770674734689,5.13445299,2119.5,2118.9,0.001]
[1770674734913,1.01405851,2119.4,2118.9,0.001]
[1770674735189,5.13445299,2119.5,2118.9,0.001]
[1770674735365,1.01385145,2119.4,2118.9,0.001]
[1770674735564,1.17957912,2119.4,2118.9,0.001]
[1770674736272,1.83845299,2119.3,2118.9,0.001]
[1770674736475,1.83845299,2119.1,2118.7,0.001]
[1770674736674,5.13445299,2119.1,2118.7,0.001]
[1770674737693,1.17980179,2119.0,2118.5,0.001]
[1770674742771,3.01825478,2119.0,2118.5,0.001]
[1770674743588,3.01825478,2119.0,2118.4,0.001]
[1770674743589,1.83845299,2118.9,2118.4,0.001]
[1770674743788,1.83845299,2118.9,2118.0,1.18035178]
[1770674744193,1.17991315,2118.8,2117.9,4.7216402]
[1770674744592,3.01836614,2118.8,2118.7,0.001]
[1770674744799,1.17991315,2118.8,2118.0,1.95336555]
[1770674745172,1.17991315,2118.8,2118.5,0.001]
[1770674745375,3.296,2119.1,2118.5,1.89804867]
[1770674745573,1.1817248,2119.2,2118.6,0.05631688]
[1770674745778,1.83845299,2119.1,2118.5,0.001]
[1770674746178,1.1817248,2119.2,2118.5,0.001]
[1770674746395,1.1817248,2119.2,2118.0,4.77756031]
[1770674746396,1.83845299,2119.0,2118.1,1.18028033]
[1770674746602,1.01284893,2118.9,2118.1,1.18029987]
[1770674746793,1.01284893,2118.9,2118.1,1.1803011]
[1770674747109,3.297,2119.1,2118.4,1.23643768]
[1770674747424,1.01342113,2119.0,2118.4,1.23643768]
[1770674747581,3.297,2119.1,2118.4,1.23643768]
[1770674747776,1.01341548,2119.0,2118.4,1.23643768]
[1770674747979,3.297,2119.1,2118.4,1.23643768]
[1770674748182,1.01341245,2119.0,2118.4,1.23643768]
[1770674748491,1.17980179,2119.0,2118.4,1.23643768]
[1770674749477,1.18171289,2119.2,2118.5,1.95168883]
[1770674749681,1.89537802,2119.1,2117.6,1.95268883]
[1770674749882,1.89537802,2119.1,2118.3,1.95168883]
[1770674749883,1.01391376,2119.0,2118.3,1.95168883]
[1770674750108,2.86863627,2119.2,2118.2,1.23652734]
[1770674750109,1.01391376,2118.9,2118.2,1.23652734]
[1770674750277,1.17980179,2119.0,2118.4,0.05631688]
[1770674750481,0.002,2119.2,2118.6,0.05631688]
[1770674750677,1.01420573,2119.1,2118.6,0.05631688]
[1770674750880,1.18169418,2119.2,2118.6,0.05631688]
[1770674751117,1.01419731,2119.1,2118.6,0.05631688]
[1770674751280,1.18169418,2119.2,2118.6,0.05631688]
[1770674751281,0.002,2119.2,2118.8,0.05631688]
[1770674751478,1.18170097,2119.2,2118.6,2.00800571]
[1770674751708,1.01462338,2119.1,2118.6,2.00800571]
[1770674751904,1.18170097,2119.2,2118.6,2.00800571]
[1770674752098,1.0146234,2119.1,2118.6,2.00800571]
[1770674752295,0.002,2119.2,2118.6,2.00800571]
[1770674752494,0.002,2119.2,2118.7,1.17996884]
[1770674753812,0.002,2119.2,2118.8,0.05631688]
[1770674754507,0.002,2119.2,2118.8,1.23622194]
[1770674754891,0.002,2119.2,2119.0,0.05631688]
[1770674755509,0.002,2119.4,2119.0,2.00800571]
[1770674756118,0.002,2119.4,2119.0,1.95168883]
[1770674756583,0.002,2119.4,2119.2,1.95168883]
[1770674756785,0.002,2120.2,2119.6,1.95168883]
[1770674757023,0.002,2120.2,2119.8,1.95168883]
[1770674757405,0.002,2120.4,2120.0,1.95168883]
[1770674757591,1.27089593,2120.4,2120.0,1.95168883]
[1770674757999,0.002,2120.6,2120.1,2.00800571]
[1770674758807,0.002,2120.6,2120.3,0.05631688]
[1770674759519,0.2555079,2120.6,2120.2,1.17913404]
[1770674760903,0.002,2121.3,2120.6,1.95168883]
[1770674761215,0.002,2121.3,2120.7,0.05631688]
[1770674762189,0.002,2121.3,2120.6,1.95168883]
[1770674762190,1.18052869,2121.3,2120.6,1.95168883]
[1770674762495,0.002,2121.3,2120.6,1.95168883]
[1770674763021,0.002,2121.3,2120.8,1.17880045]
[1770674763222,0.002,2121.3,2121.0,2.00800571]
[1770674763521,0.002,2121.6,2121.2,2.00800571]
[1770674763899,0.002,2121.6,2121.4,0.05631688]
[1770674764418,1.17795477,2122.4,2121.4,2.00800571]
[1770674764715,1.17991063,2122.5,2121.8,0.05631688]
[1770674764917,0.002,2122.4,2121.9,1.17818935]
[1770674765087,0.002,2122.4,2121.8,1.17820299]
[1770674766319,0.002,2122.4,2122.0,0.05631688]
[1770674766629,0.002,2122.5,2122.0,0.05631688]
[1770674766802,0.002,2122.4,2121.8,3.1862087]
[1770674767125,0.002,2122.5,2121.8,3.1862087]
[1770674767298,0.002,2122.4,2122.0,0.05631688]
[1770674769526,0.002,2122.4,2121.9,1.17815564]
[1770674769744,0.002,2122.4,2121.9,1.17814112]
[1770674770177,1.89537802,2122.4,2121.3,1.17848783]
[1770674770477,0.002,2122.3,2121.9,0.001]
[1770674770762,0.002,2122.2,2121.3,2.00800571]
[1770674770932,0.004,2122.2,2121.8,1.17824382]
[1770674771136,0.002,2122.1,2121.6,0.001]
[1770674771448,0.002,2122.1,2121.8,1.17820988]
[1770674771649,0.002,2122.1,2121.7,1.23457676]
[1770674772035,0.002,2122.1,2121.6,1.17932797]
[1770674772239,0.002,2122.1,2121.7,1.17829273]
[1770674774157,0.002,2122.1,2121.6,0.05731688]
[1770674774364,0.002,2122.1,2121.6,0.001]
[1770674777351,0.002,2122.2,2121.6,0.001]
[1770674777633,0.002,2122.1,2121.6,0.001]
[1770674778053,0.002,2122.1,2121.1,1.95168883]
[1770674778250,0.002,2122.1,2120.8,0.001]
[1770674778251,1.89537802,2122.0,2120.8,0.001]
[1770674778464,1.89537802,2122.0,2120.8,1.17979606]
[1770674778760,1.89737802,2121.9,2120.8,1.17979606]
[1770674778955,1.89537802,2121.9,2120.8,1.17979606]
[1770674779148,0.002,2121.8,2120.8,1.17979606]
[1770674779547,0.002,2121.7,2120.8,1.17979606]
[1770674780060,0.002,2121.6,2120.8,0.001]
[1770674780262,1.18035595,2121.6,2120.8,0.001]
[1770674781866,1.18035595,2121.6,2120.9,0.05631688]
[1770674783259,0.002,2121.6,2120.9,0.05631688]
[1770674783841,1.86448417,2121.6,2120.8,0.001]
[1770674784367,1.86448417,2121.6,2121.0,0.001]
[1770674785168,1.86448417,2121.6,2120.8,0.001]
[1770674785363,1.1784115,2121.5,2120.8,0.001]
[1770674785563,1.1804115,2121.5,2120.8,0.001]
[1770674786867,1.01126629,2121.4,2120.8,0.001]
[1770674787068,3.04289567,2121.5,2120.8,0.001]
[1770674787247,1.01128,2121.4,2120.8,0.001]
[1770674787573,3.04289567,2121.5,2120.8,0.001]
[1770674787771,1.01198437,2121.4,2120.8,0.001]
[1770674788067,3.04289567,2121.5,2120.8,0.001]
[1770674788279,2.87446869,2121.4,2120.8,0.001]
[1770674788575,1.01198452,2121.3,2120.8,0.001]
[1770674788874,2.87446869,2121.2,2120.8,0.001]
[1770674789046,1.01198452,2121.1,2120.3,3.34931688]
[1770674789244,1.01398452,2121.1,2120.3,3.34931688]
[1770674789455,1.18063372,2121.1,2120.3,3.34931688]
[1770674792049,1.17863372,2121.1,2120.3,3.34931688]
[1770674794287,0.002,2121.0,2120.3,3.34931688]
[1770674796293,0.002,2121.0,2120.5,0.001]
[1770674796681,1.17863372,2121.1,2120.5,0.001]
[1770674796979,0.002,2121.0,2120.5,0.001]
[1770674797165,1.17863372,2121.1,2120.5,0.001]
[1770674797363,0.002,2121.0,2120.5,0.001]
[1770674799086,1.17863372,2121.1,2120.6,1.96365432]
[1770674799593,1.18063372,2121.1,2120.6,1.96365432]
[1770674800162,1.18063372,2121.1,2120.6,1.90733744]
[1770674801372,0.002,2121.1,2120.6,1.90733744]
[1770674802505,1.86248417,2121.1,2120.5,0.001]
[1770674802676,1.86248417,2120.7,2119.9,0.001]
[1770674802876,1.66773541,2120.8,2119.9,0.001]
[1770674802877,2.87624255,2120.6,2119.9,0.001]
[1770674803195,1.01375838,2120.5,2119.9,0.001]
[1770674803490,1.17907843,2120.3,2119.9,0.001]
[1770674804679,1.01403856,2120.2,2119.9,0.001]
[1770674804880,1.17907843,2120.3,2119.9,0.001]
[1770674805074,1.01404152,2120.2,2119.4,1.96465432]
[1770674805265,1.17907843,2120.3,2119.4,1.96465432]
[1770674805471,1.17918966,2120.1,2119.4,1.96465432]
[1770674806388,4.71631372,2120.4,2119.6,1.96365432]
[1770674806389,1.17902282,2120.4,2119.6,1.96365432]
[1770674806590,1.01386304,2120.3,2119.6,1.96365432]
[1770674806796,1.17902282,2120.4,2119.6,1.96365432]
[1770674806995,2.87638309,2120.3,2119.4,1.96465432]
[1770674807197,1.01389892,2120.2,2119.4,1.96465432]
[1770674807397,1.17918966,2120.1,2119.4,1.96465432]
[1770674809109,1.17918966,2120.1,2119.8,0.001]
[1770674809684,4.71675864,2120.2,2119.8,0.001]
[1770674811711,1.17913404,2120.4,2119.8,0.001]
[1770674812010,1.01327064,2120.3,2119.8,0.001]
[1770674812201,1.01327064,2120.2,2119.8,0.001]
[1770674812400,1.17913404,2120.4,2119.8,0.001]
[1770674812609,1.0132143,2120.3,2119.8,0.001]
[1770674812905,1.0132143,2120.2,2119.8,0.001]
[1770674813093,1.17913404,2120.4,2119.8,0.001]
[1770674813411,1.0132143,2120.3,2119.8,0.001]
[1770674813612,1.0132143,2120.2,2119.8,0.001]
[1770674813783,1.17913404,2120.2,2119.8,0.001]
[1770674815216,1.17913404,2120.2,2119.5,0.001]
[1770674815800,6.64109987,2120.3,2119.5,0.001]
[1770674815986,1.01333401,2120.2,2119.5,0.001]
[1770674816186,6.64109987,2120.3,2119.5,0.001]
[1770674816420,1.01336714,2120.2,2119.5,0.001]
[1770674816618,6.64109987,2120.3,2119.5,0.001]
[1770674816827,1.01336652,2120.2,2119.5,0.001]
[1770674817133,6.64109987,2120.3,2119.5,0.001]
[1770674817297,1.01340309,2120.2,2119.5,0.001]
[1770674817506,6.64109987,2120.3,2119.5,0.001]
[1770674817704,1.01340293,2120.2,2119.5,0.001]
[1770674817908,6.64109987,2120.3,2119.5,0.001]
[1770674818212,1.01340903,2120.2,2119.5,1.93202483]
[1770674818406,6.64109987,2120.3,2119.5,1.93202483]
[1770674818604,1.01348985,2120.2,2119.5,1.93202483]
[1770674818795,4.71742415,2120.8,2120.2,1.98734171]
[1770674819115,1.17888891,2120.7,2120.2,1.98734171]
[1770674820223,1.18080354,2120.8,2120.4,1.98734171]
[1770674820711,1.18080354,2120.8,2120.4,0.05631688]
[1770674821234,0.002,2121.0,2120.6,1.98734171]
[1770674821387,0.002,2121.0,2120.8,0.05631688]
[1770674822795,0.002,2121.0,2120.7,1.93102483]
[1770674822995,0.002,2121.0,2120.6,0.05631688]
[1770674823318,0.002,2121.0,2120.5,1.93102483]
[1770674823510,0.002,2121.0,2120.4,1.23533177]
[1770674823890,0.002,2121.0,2120.4,0.05631688]
[1770674828038,0.002,2121.0,2120.3,1.93102483]
[1770674828198,0.002,2121.0,2120.4,0.05631688]
[1770674829128,0.002,2121.0,2120.4,1.23533812]
[1770674831527,0.002,2121.0,2120.4,3.16636295]
[1770674831727,0.002,2121.0,2120.5,1.93102483]
[1770674832431,0.002,2121.0,2120.2,0.05631688]
[1770674832729,0.002,2121.0,2120.2,1.23544566]
[1770674832903,1.9265637,2121.0,2120.2,1.23544566]
[1770674833831,1.17874487,2120.9,2120.2,1.23544566]
[1770674834305,1.17874487,2120.9,2120.2,3.16647049]
[1770674835217,1.17874487,2120.9,2120.4,0.05631688]
[1770674835609,1.17874487,2120.9,2120.4,0.05731688]
[1770674835932,0.002,2120.8,2120.4,1.23632842]
[1770674837633,0.002,2120.8,2120.4,0.05731688]
[1770674837826,0.002,2120.8,2120.4,0.001]
[1770674838834,1.9265637,2120.8,2120.4,0.001]
[1770674839030,1.9245637,2120.6,2119.7,0.001]
[1770674839706,1.9245637,2120.6,2119.7,1.18040917]
[1770674840113,1.17896722,2120.5,2119.7,1.18040917]
[1770674840308,1.17896722,2120.5,2119.8,0.05631688]
[1770674842537,3.21467757,2120.5,2119.7,0.001]
[1770674842724,1.01410846,2120.4,2119.7,0.001]
[1770674843036,2.03571035,2120.4,2119.7,0.001]
[1770674843237,1.01418303,2120.3,2119.7,1.18040519]
[1770674843539,2.03571035,2120.4,2119.7,1.18040519]
[1770674843744,1.01428735,2120.3,2119.7,1.18040519]
[1770674843947,2.03571035,2120.4,2119.7,1.18040519]
[1770674844143,1.01428735,2120.3,2119.7,1.18040519]
[1770674844347,2.03571035,2120.4,2119.7,1.18040519]
[1770674844733,2.19341983,2120.3,2119.7,1.18040519]
[1770674844936,1.17907843,2120.3,2119.7,1.18040519]
[1770674848445,1.17907843,2120.3,2119.9,0.001]
[1770674849350,0.002,2120.4,2120.0,0.05631688]
[1770674853468,0.002,2120.4,2120.0,1.23555459]
[1770674854170,2.03771035,2120.4,2119.9,0.001]
[1770674855670,1.17907843,2120.3,2119.9,0.001]
[1770674858466,0.002,2120.4,2119.9,0.001]
[1770674858674,0.002,2120.4,2120.0,0.05631688]
[1770674861374,1.01611752,2120.3,2120.0,1.23552878]
[1770674861546,0.002,2120.4,2120.0,1.23552878]
[1770674861746,1.01611783,2120.3,2120.0,1.23552878]
[1770674861957,0.002,2120.4,2120.0,1.23552878]
[1770674862271,1.01611752,2120.3,2120.0,1.23552878]
[1770674862476,0.002,2120.4,2119.9,1.18027095]
[1770674862647,2.03571035,2120.2,2120.1,0.001]
[1770674862846,3.05218269,2120.2,2120.1,0.001]
[1770674863045,2.03571035,2120.1,2119.6,0.001]
[1770674863246,1.17935654,2119.8,2119.5,0.001]
[1770674863569,1.01647234,2119.7,2119.5,0.001]
[1770674863757,1.01647234,2119.6,2119.5,0.001]
[1770674864368,1.17935654,2119.8,2119.5,0.001]
[1770674864577,1.01624353,2119.7,2119.5,0.001]
[1770674864876,1.17935654,2119.8,2119.5,0.001]
[1770674865042,1.01624062,2119.7,2119.5,0.001]
[1770674865243,1.17935654,2119.8,2119.5,0.001]
[1770674865466,1.01618673,2119.7,2119.5,0.001]
[1770674865665,1.17935654,2119.8,2119.5,0.001]
[1770674865877,1.01619285,2119.7,2119.5,0.001]
[1770674866086,1.17935654,2119.8,2119.5,0.001]
[1770674866381,1.01619292,2119.7,2119.5,0.001]
[1770674866569,1.01619292,2119.6,2119.5,0.001]
[1770674866967,1.01619292,2119.7,2119.5,0.001]
[1770674867171,1.01619292,2119.6,2119.5,0.002]
[1770674867477,1.17946782,2119.6,2119.5,0.001]
[1770674867782,2.19566074,2119.6,2119.5,0.001]
[1770674867987,1.27102399,2120.0,2119.5,1.86780533]
[1770674868278,1.01618034,2119.9,2119.6,1.92412221]
[1770674868476,1.27102399,2120.2,2119.6,1.92412221]
[1770674868682,1.0164506,2120.1,2119.6,1.92412221]
[1770674868978,1.0164506,2120.0,2119.6,1.92412221]
[1770674869281,2.45016693,2120.2,2119.6,1.92412221]
[1770674869488,1.01647833,2120.1,2119.7,1.17941218]
[1770674869697,1.01647833,2120.0,2119.7,1.17941218]
[1770674869853,1.17913421,2120.2,2119.8,0.001]
[1770674870175,1.01647551,2120.1,2119.8,0.001]
[1770674870364,1.01647551,2120.0,2119.8,0.001]
[1770674870561,1.17913421,2120.2,2119.8,0.001]
[1770674870756,1.0165047,2120.1,2119.8,0.001]
[1770674870965,1.0165047,2120.0,2119.8,0.001]
[1770674871166,1.27102399,2120.2,2119.8,0.001]
[1770674871479,1.01654373,2120.1,2119.8,1.18035654]
[1770674871681,1.01654373,2120.0,2119.8,0.001]
[1770674871858,2.45010412,2120.3,2119.8,0.001]
[1770674872052,1.01654083,2120.2,2119.8,0.001]
[1770674872248,1.01654083,2120.1,2119.8,0.001]
[1770674872464,1.01656623,2120.0,2119.8,0.001]
[1770674872671,2.45010412,2120.3,2119.8,0.001]
[1770674872979,1.01657268,2120.2,2119.8,0.001]
[1770674873174,1.27102399,2120.3,2119.8,0.001]
[1770674873374,2.45011227,2120.3,2119.8,0.001]
[1770674874059,1.27302399,2120.4,2119.9,0.05631688]
[1770674874257,1.27302399,2120.4,2119.9,1.98642314]
[1770674874258,0.002,2120.4,2119.9,1.98642314]
[1770674874453,0.002,2120.4,2120.0,0.001]
[1770674874997,1.18104167,2120.4,2120.0,0.001]
[1770674875362,1.18104167,2120.4,2119.7,3.1095138]
[1770674875579,1.18104167,2120.4,2119.8,0.002]
[1770674875760,0.002,2120.1,2119.8,0.002]
[1770674880468,1.86508788,2120.1,2119.5,0.001]
[1770674880680,1.86308788,2120.0,2119.5,0.002]
[1770674880971,0.002,2120.1,2119.5,0.002]
[1770674881165,0.002,2120.1,2119.5,3.11162518]
[1770674881166,1.27302399,2120.1,2119.5,3.11162518]
[1770674881387,1.27302399,2120.1,2119.6,1.98642314]
[1770674881388,0.002,2120.1,2119.6,1.98642314]
[1770674881779,0.002,2120.1,2119.9,1.17930091]
[1770674881977,0.001,2120.1,2119.8,3.10946215]
[1770674882485,0.001,2120.1,2119.8,3.16577903]
[1770674883088,0.001,2120.1,2119.8,1.23567277]
[1770674884402,0.001,2120.1,2119.8,3.16577903]
[1770674884733,1.27034913,2120.8,2120.5,0.05631688]
[1770674885015,1.18069566,2121.0,2120.5,3.295]
[1770674885176,1.01618531,2120.9,2120.5,3.295]
[1770674885374,1.18069566,2121.0,2120.5,3.295]
[1770674886712,0.002,2121.0,2120.5,4.47396137]
[1770674888104,1.86508788,2121.0,2120.5,3.295]
[1770674888483,0.002,2120.7,2120.5,3.295]
[1770674894717,0.002,2120.7,2120.5,6.40406955]
[1770674894910,0.002,2120.7,2120.5,5.22510626]
[1770674895118,0.002,2120.7,2120.5,6.40406154]
[1770674895818,0.002,2120.7,2120.0,4.47421748]
[1770674896025,0.002,2120.7,2120.4,1.93010626]
[1770674896185,0.002,2120.7,2120.4,3.10909044]
[1770674896819,0.002,2120.7,2120.4,3.109083]
[1770674897023,0.002,2120.7,2120.5,5.22510626]
[1770674898222,0.002,2120.7,2120.6,1.93010626]
[1770674898404,0.002,2120.9,2120.6,1.93010626]
[1770674899118,0.002,2120.9,2120.7,1.17885603]
[1770674901431,0.002,2121.2,2120.8,1.96511477]
[1770674901699,0.002,2121.2,2120.9,3.294]
[1770674904337,0.002,2121.2,2120.9,4.47273942]
[1770674906035,0.002,2121.2,2121.0,1.96511477]
[1770674906327,0.002,2121.3,2121.1,3.14374849]
[1770674906720,0.002,2121.4,2121.1,1.96511477]
[1770674907034,0.002,2121.4,2121.1,2.02143165]
[1770674907411,0.002,2121.4,2121.3,0.05631688]
[1770674907620,0.002,2121.4,2121.3,5.31543165]
[1770674908341,0.002,2121.6,2121.4,1.96511477]
[1770674908636,0.002,2121.6,2121.5,2.02143165]
[1770674909013,0.002,2121.6,2121.5,1.96511477]
[1770674910116,0.002,2121.6,2121.3,6.49395425]
[1770674910317,0.002,2121.6,2121.4,1.96511477]
[1770674910534,0.002,2121.6,2121.3,4.52883948]
[1770674911340,0.002,2121.6,2121.2,1.17855402]
[1770674911508,0.002,2121.6,2121.1,1.17859899]
[1770674911710,0.002,2121.6,2121.3,3.294]
[1770674913126,0.002,2121.4,2121.3,3.294]
[1770674914818,0.002,2121.4,2120.9,4.47270248]
[1770674915023,0.002,2121.4,2121.0,3.294]
[1770674915409,0.002,2121.4,2120.9,3.294]
[1770674915410,1.94377305,2121.4,2120.9,3.294]
[1770674917124,3.12228357,2121.4,2120.9,4.47274079]
[1770674917328,0.002,2121.4,2120.9,7.76674079]
[1770674918240,0.002,2121.4,2121.0,0.05631688]
[1770674919053,0.002,2121.4,2121.0,1.23497618]
[1770674919252,0.002,2121.4,2121.1,3.294]
[1770674921751,0.002,2121.4,2121.1,4.47263052]
[1770674924654,0.002,2121.4,2121.2,0.001]
[1770674927694,0.002,2121.4,2121.3,3.294]
[1770674927851,0.002,2121.4,2121.3,4.4725226]
[1770674928730,0.002,2121.6,2121.3,1.1785226]
[1770674928949,0.002,2121.6,2121.4,3.292]
[1770674929949,0.002,2121.6,2121.4,4.52677683]
[1770674930661,0.002,2121.6,2121.4,3.292]
[1770674930873,0.002,2121.6,2121.4,4.47046435]
[1770674931039,0.002,2121.6,2121.4,3.292]
[1770674931567,0.002,2121.6,2121.3,1.1784904]
[1770674931733,0.002,2121.6,2121.3,4.4704904]
[1770674935442,0.002,2121.6,2121.3,1.1784904]
[1770674936059,0.002,2121.6,2121.3,3.292]
[1770674938383,0.002,2121.6,2121.3,4.47047955]
[1770674938675,0.002,2121.6,2121.5,0.001]
[1770674940143,0.002,2121.6,2121.5,3.293]
[1770674940348,0.002,2121.6,2121.5,4.4714115]
[1770674940560,0.002,2121.6,2121.5,3.293]
[1770674941158,11.72465617,2122.1,2121.5,3.293]
[1770674941159,0.002,2122.2,2121.6,1.87122484]
[1770674941367,1.01743081,2122.1,2121.6,1.92754172]
[1770674941573,1.01743081,2122.0,2121.6,1.92754172]
[1770674941776,0.002,2122.2,2121.7,3.292]
[1770674941966,1.01737955,2122.1,2121.6,1.92754172]
[1770674942166,0.002,2122.2,2121.6,1.92754172]
[1770674942368,1.01696999,2122.1,2121.7,3.292]
[1770674942561,0.002,2122.2,2121.7,4.47029363]
[1770674942762,1.01697015,2122.1,2121.7,4.47029363]
[1770674943085,0.002,2122.2,2121.7,4.47029363]